[Event "*** MasterClass Titled Tuesday Blitz"]
[Site "Chess.com"]
[Date "2017.07.04"]
[Round "5"]
[White "FairChess_on_YouTube"]
[Black "A-Fier"]
[Result "1-0"]
[WhiteElo "2703"]
[BlackElo "2557"]
[TimeControl "180+2"]
[EndTime "14:11:54 PDT"]
[Termination "FairChess_on_YouTube won by resignation"]

1. d4 {[%clk 0:03:01.9]} 1... Nf6 {[%clk 0:02:56.7]} 2. Bg5 {[%clk 0:03:02.3]}
2... Ne4 {[%clk 0:02:53.7]} 3. Bf4 {[%clk 0:03:03]} 3... c5 {[%clk 0:02:54.5]}
4. f3 {[%clk 0:03:02.9]} 4... Nf6 {[%clk 0:02:51.9]} 5. d5 {[%clk 0:03:02.9]}
5... d6 {[%clk 0:02:51.8]} 6. e4 {[%clk 0:03:02.8]} 6... g6 {[%clk 0:02:52.9]}
7. Nc3 {[%clk 0:02:59.1]} 7... Bg7 {[%clk 0:02:54.4]} 8. Qd2 {[%clk 0:03:00.4]}
8... a6 {[%clk 0:02:53.9]} 9. Bh6 {[%clk 0:02:58.6]} 9... Bxh6 {[%clk
0:02:53.6]} 10. Qxh6 {[%clk 0:03:00.5]} 10... b5 {[%clk 0:02:55.3]} 11. h4
{[%clk 0:02:52.1]} 11... Nbd7 {[%clk 0:02:55.1]} 12. Nh3 {[%clk 0:02:48.2]}
12... Bb7 {[%clk 0:02:55.4]} 13. Nf2 {[%clk 0:02:46.3]} 13... Qa5 {[%clk
0:02:55.8]} 14. Qd2 {[%clk 0:02:42.9]} 14... h5 {[%clk 0:02:52.5]} 15. Be2
{[%clk 0:02:40.7]} 15... Qc7 {[%clk 0:02:41.9]} 16. a4 {[%clk 0:02:39.9]} 16...
b4 {[%clk 0:02:40.6]} 17. Ncd1 {[%clk 0:02:40.9]} 17... a5 {[%clk 0:02:41.4]}
18. Ne3 {[%clk 0:02:38.6]} 18... Ba6 {[%clk 0:02:42.1]} 19. Bxa6 {[%clk
0:02:33.9]} 19... Rxa6 {[%clk 0:02:44]} 20. Qe2 {[%clk 0:02:31.1]} 20... Ra8
{[%clk 0:02:42.1]} 21. Nc4 {[%clk 0:02:27]} 21... Nb6 {[%clk 0:02:41.6]} 22.
Nxb6 {[%clk 0:02:20.2]} 22... Qxb6 {[%clk 0:02:42.2]} 23. Qb5+ {[%clk
0:02:20.6]} 23... Qxb5 {[%clk 0:02:42.5]} 24. axb5 {[%clk 0:02:21.3]} 24... Kd7
{[%clk 0:02:43.7]} 25. Nd1 {[%clk 0:02:16.9]} 25... Rhb8 {[%clk 0:02:42.1]} 26.
c4 {[%clk 0:02:17.7]} 26... a4 {[%clk 0:02:38.1]} 27. Kd2 {[%clk 0:02:11.9]}
27... Ra5 {[%clk 0:02:37.5]} 28. Ne3 {[%clk 0:02:04.4]} 28... Rba8 {[%clk
0:02:38.4]} 29. Kc2 {[%clk 0:01:50.9]} 29... Kc7 {[%clk 0:02:38.1]} 30. Rad1
{[%clk 0:01:44.6]} 30... Nd7 {[%clk 0:02:36.6]} 31. Kb1 {[%clk 0:01:40.7]} 31...
Nb6 {[%clk 0:02:31.3]} 32. Ka2 {[%clk 0:01:38.3]} 32... Rh8 {[%clk 0:02:32.4]}
33. Rc1 {[%clk 0:01:34.3]} 33... Raa8 {[%clk 0:02:32.4]} 34. Rhf1 {[%clk
0:01:30.5]} 34... Raf8 {[%clk 0:02:32.3]} 35. Rfe1 {[%clk 0:01:29.4]} 35... Rhg8
{[%clk 0:02:29.9]} 36. f4 {[%clk 0:01:28.2]} 36... f6 {[%clk 0:02:22.2]} 37. g3
{[%clk 0:01:14.8]} 37... Kd7 {[%clk 0:02:19.4]} 38. Rh1 {[%clk 0:01:11.9]} 38...
Rg7 {[%clk 0:02:13.5]} 39. Ng2 {[%clk 0:01:05.2]} 39... Rfg8 {[%clk 0:02:04.1]}
40. Ne1 {[%clk 0:01:02.7]} 40... Rh8 {[%clk 0:01:58.3]} 41. Nf3 {[%clk 0:01:03]}
41... Ra8 {[%clk 0:01:57.9]} 42. Rhe1 {[%clk 0:01:03.6]} 42... Rf7 {[%clk
0:01:57]} 43. Re3 {[%clk 0:01:02.9]} 43... Kc7 {[%clk 0:01:55.8]} 44. Nd2 {[%clk
0:01:02.2]} 44... Rg8 {[%clk 0:01:54.8]} 45. Rce1 {[%clk 0:01:01.4]} 45... g5
{[%clk 0:01:53.6]} 46. hxg5 {[%clk 0:01:02.3]} 46... fxg5 {[%clk 0:01:54.4]} 47.
f5 {[%clk 0:01:03.8]} 47... g4 {[%clk 0:01:52.6]} 48. Rh1 {[%clk 0:01:02.6]}
48... Rh7 {[%clk 0:01:52]} 49. Re2 {[%clk 0:00:59.4]} 49... Nd7 {[%clk
0:01:49.1]} 50. Nf1 {[%clk 0:00:56.1]} 50... Ne5 {[%clk 0:01:47.5]} 51. Ne3
{[%clk 0:00:56.7]} 51... Rgh8 {[%clk 0:01:40.9]} 52. Reh2 {[%clk 0:00:57.4]}
52... Nf3 {[%clk 0:01:41.3]} 53. Rf2 {[%clk 0:00:54.2]} 53... Ng5 {[%clk
0:01:40.3]} 54. Rf4 {[%clk 0:00:53.5]} 54... Nh3 {[%clk 0:01:33.5]} 55. Rff1
{[%clk 0:00:53.9]} 55... Ng5 {[%clk 0:01:34.4]} 56. Rf4 {[%clk 0:00:51.7]} 56...
Rh6 {[%clk 0:01:20.9]} 57. Ng2 {[%clk 0:00:47.3]} 57... Nf3 {[%clk 0:01:15.9]}
58. Ne3 {[%clk 0:00:33.5]} 58... Ne5 {[%clk 0:01:13.2]} 59. Rh4 {[%clk
0:00:29.9]} 59... Kb6 {[%clk 0:01:12.9]} 60. Rf1 {[%clk 0:00:28.5]} 60... Ka5
{[%clk 0:01:13.5]} 61. Rfh1 {[%clk 0:00:20.4]} 61... R8h7 {[%clk 0:00:58.7]} 62.
Ng2 {[%clk 0:00:19.8]} 62... Nf3 {[%clk 0:00:57.7]} 63. Nf4 {[%clk 0:00:21.4]}
63... Nxh4 {[%clk 0:00:53.5]} 64. Rxh4 {[%clk 0:00:23.3]} 64... Kb6 {[%clk
0:00:48.6]} 65. Ne6 {[%clk 0:00:23.1]} 65... Ka5 {[%clk 0:00:43.5]} 66. Nd8
{[%clk 0:00:22.4]} 66... Kb6 {[%clk 0:00:41.8]} 67. Ne6 {[%clk 0:00:23.3]} 67...
Rh8 {[%clk 0:00:41.9]} 68. Ng5 {[%clk 0:00:22.8]} 68... Rf8 {[%clk 0:00:42.6]}
69. Ne6 {[%clk 0:00:23]} 69... Rg8 {[%clk 0:00:42.5]} 70. Nf4 {[%clk 0:00:23.3]}
70... Kc7 {[%clk 0:00:42.3]} 71. Ne6+ {[%clk 0:00:23.2]} 71... Kd7 {[%clk
0:00:42.6]} 72. Kb1 {[%clk 0:00:24.2]} 72... Ke8 {[%clk 0:00:42.5]} 73. Kc2
{[%clk 0:00:24.9]} 73... Kf7 {[%clk 0:00:43.4]} 74. Kd3 {[%clk 0:00:23]} 74...
Kf6 {[%clk 0:00:44.3]} 75. Nf4 {[%clk 0:00:23.2]} 75... Rgh8 {[%clk 0:00:39.3]}
76. Kc2 {[%clk 0:00:22.4]} 76... Ke5 {[%clk 0:00:39.6]} 77. Kd3 {[%clk
0:00:23.2]} 77... R8h7 {[%clk 0:00:39.2]} 78. Ng6+ {[%clk 0:00:22.9]} 78... Kf6
{[%clk 0:00:39.6]} 79. Nf8 {[%clk 0:00:24]} 79... Rh8 {[%clk 0:00:39.6]} 80.
Nd7+ {[%clk 0:00:24.4]} 80... Kf7 {[%clk 0:00:33.3]} 81. b6 {[%clk 0:00:20.6]}
81... Ke8 {[%clk 0:00:34.1]} 82. Nb8 {[%clk 0:00:21.8]} 82... Kd8 {[%clk
0:00:24.6]} 83. Nc6+ {[%clk 0:00:22.8]} 83... Kd7 {[%clk 0:00:25.7]} 84. e5
{[%clk 0:00:20.1]} 84... R6h7 {[%clk 0:00:17.2]} 85. e6+ {[%clk 0:00:19.5]}
85... Kc8 {[%clk 0:00:18.2]} 86. Na5 {[%clk 0:00:18.1]} 86... Kb8 {[%clk
0:00:18.5]} 87. Rh1 {[%clk 0:00:16.6]} 87... h4 {[%clk 0:00:18.8]} 88. Nc6+
{[%clk 0:00:15.1]} 88... Kb7 {[%clk 0:00:18.9]} 89. gxh4 {[%clk 0:00:16.7]}
89... Rxh4 {[%clk 0:00:18.7]} 90. Rf1 {[%clk 0:00:14.8]} 90... g3 {[%clk
0:00:17.4]} 91. Nxe7 {[%clk 0:00:15.1]} 91... g2 {[%clk 0:00:16.8]} 92. Rg1
{[%clk 0:00:16.1]} 92... Rg4 {[%clk 0:00:18]} 93. f6 {[%clk 0:00:16.1]} 93... a3
{[%clk 0:00:18]} 94. bxa3 {[%clk 0:00:15.5]} 94... bxa3 {[%clk 0:00:18.9]} 95.
Nf5 {[%clk 0:00:16]} 95... Rh3+ {[%clk 0:00:18.2]} 96. Ke2 {[%clk 0:00:15.7]}
96... a2 {[%clk 0:00:18.2]} 97. f7 {[%clk 0:00:14.8]} 97... Re4+ {[%clk
0:00:18.7]} 98. Kd2 {[%clk 0:00:15.8]} 98... Rh8 {[%clk 0:00:17.6]} 99. Nxd6+
{[%clk 0:00:16.2]} 99... Kxb6 {[%clk 0:00:17.9]} 100. Nxe4 {[%clk 0:00:18.1]}
100... Rh2 {[%clk 0:00:16.2]} 101. Nf2 {[%clk 0:00:16.8]} 101... a1=Q {[%clk
0:00:18.1]} 102. Rxa1 {[%clk 0:00:17.1]} 1-0

[Event "*** MasterClass Titled Tuesday Blitz"]
[Site "Chess.com"]
[Date "2017.07.04"]
[Round "5"]
[White "Zufi1811"]
[Black "Iball95"]
[Result "1-0"]
[WhiteElo "2395"]
[BlackElo "2515"]
[TimeControl "180+2"]
[EndTime "14:11:54 PDT"]
[Termination "Zufi1811 won by checkmate"]

1. d4 {[%clk 0:03:01.9]} 1... Nf6 {[%clk 0:03:01]} 2. Nf3 {[%clk 0:03:03.1]}
2... e6 {[%clk 0:03:02.1]} 3. Bf4 {[%clk 0:03:04.2]} 3... c5 {[%clk 0:03:02.7]}
4. c3 {[%clk 0:03:02.6]} 4... Nc6 {[%clk 0:03:01.5]} 5. e3 {[%clk 0:03:02.8]}
5... d5 {[%clk 0:03:02.5]} 6. Nbd2 {[%clk 0:03:01.8]} 6... Bd6 {[%clk
0:03:03.6]} 7. Bg3 {[%clk 0:03:02.7]} 7... O-O {[%clk 0:03:03.6]} 8. Bb5 {[%clk
0:03:01.5]} 8... Ne7 {[%clk 0:03:04.2]} 9. Bd3 {[%clk 0:02:54.2]} 9... b6 {[%clk
0:03:02.3]} 10. Ne5 {[%clk 0:02:48.3]} 10... Bb7 {[%clk 0:02:58]} 11. f4 {[%clk
0:02:22]} 11... Nf5 {[%clk 0:02:58]} 12. Bf2 {[%clk 0:02:17.6]} 12... Ne4 {[%clk
0:02:56.5]} 13. Qc2 {[%clk 0:02:03]} 13... Nxf2 {[%clk 0:02:48.1]} 14. Kxf2
{[%clk 0:02:04.9]} 14... g6 {[%clk 0:02:14.4]} 15. Bxf5 {[%clk 0:01:56.7]} 15...
exf5 {[%clk 0:02:16]} 16. Nef3 {[%clk 0:01:52.3]} 16... Re8 {[%clk 0:02:14.5]}
17. Rae1 {[%clk 0:01:50.3]} 17... Rc8 {[%clk 0:02:14.6]} 18. Qd3 {[%clk
0:01:49.6]} 18... Qc7 {[%clk 0:02:05.3]} 19. h3 {[%clk 0:01:44.9]} 19... h5
{[%clk 0:02:02.4]} 20. Ne5 {[%clk 0:01:41.1]} 20... Kg7 {[%clk 0:02:01.7]} 21.
g4 {[%clk 0:01:38.2]} 21... fxg4 {[%clk 0:02:01.6]} 22. hxg4 {[%clk 0:01:40.1]}
22... hxg4 {[%clk 0:02:01.4]} 23. Reg1 {[%clk 0:01:16.6]} 23... Rh8 {[%clk
0:01:10.3]} 24. Rxh8 {[%clk 0:01:14]} 24... Rxh8 {[%clk 0:01:11.8]} 25. Rxg4
{[%clk 0:01:14.9]} 25... Rh6 {[%clk 0:01:09]} 26. Ndf3 {[%clk 0:01:09.9]} 26...
Bc8 {[%clk 0:01:06]} 27. Rg2 {[%clk 0:01:08.2]} 27... c4 {[%clk 0:01:05.4]} 28.
Qc2 {[%clk 0:01:06.7]} 28... Qe7 {[%clk 0:01:02.2]} 29. f5 {[%clk 0:01:01.6]}
29... Qf6 {[%clk 0:00:53.2]} 30. fxg6 {[%clk 0:00:56.9]} 30... fxg6 {[%clk
0:00:54.6]} 31. Kg1 {[%clk 0:00:52.7]} 31... Bf5 {[%clk 0:00:52.1]} 32. Qa4
{[%clk 0:00:53.7]} 32... Be4 {[%clk 0:00:35.6]} 33. Qxa7+ {[%clk 0:00:43.7]}
33... Qe7 {[%clk 0:00:32.4]} 34. Qxe7+ {[%clk 0:00:37.2]} 34... Bxe7 {[%clk
0:00:33.6]} 35. Rh2 {[%clk 0:00:38.1]} 35... Bd6 {[%clk 0:00:24.7]} 36. Rxh6
{[%clk 0:00:36.9]} 36... Kxh6 {[%clk 0:00:25.7]} 37. Nf7+ {[%clk 0:00:34.6]}
37... Kg7 {[%clk 0:00:26.5]} 38. Nxd6 {[%clk 0:00:34.3]} 38... Bxf3 {[%clk
0:00:27.8]} 39. Nc8 {[%clk 0:00:30.6]} 39... b5 {[%clk 0:00:27.5]} 40. Nd6
{[%clk 0:00:30.9]} 40... Kf6 {[%clk 0:00:26.7]} 41. Kf2 {[%clk 0:00:29.7]} 41...
Bd1 {[%clk 0:00:26.7]} 42. Nxb5 {[%clk 0:00:28.8]} 42... Ke6 {[%clk 0:00:27.3]}
43. Kg3 {[%clk 0:00:29.4]} 43... g5 {[%clk 0:00:26.5]} 44. Nc7+ {[%clk
0:00:24.7]} 44... Kd6 {[%clk 0:00:27.1]} 45. Ne8+ {[%clk 0:00:24.8]} 45... Ke6
{[%clk 0:00:24]} 46. Ng7+ {[%clk 0:00:19.2]} 46... Kf6 {[%clk 0:00:23.7]} 47.
Ne8+ {[%clk 0:00:19.2]} 47... Ke7 {[%clk 0:00:24]} 48. Nc7 {[%clk 0:00:21.1]}
48... Kd6 {[%clk 0:00:23.6]} 49. Na6 {[%clk 0:00:23]} 49... Ke6 {[%clk
0:00:22.9]} 50. Nb4 {[%clk 0:00:24.9]} 50... Kd6 {[%clk 0:00:21]} 51. b3 {[%clk
0:00:22.4]} 51... cxb3 {[%clk 0:00:21.3]} 52. axb3 {[%clk 0:00:24.3]} 52... Ke6
{[%clk 0:00:21.8]} 53. c4 {[%clk 0:00:22.4]} 53... Bxb3 {[%clk 0:00:17.5]} 54.
cxd5+ {[%clk 0:00:21]} 54... Kf5 {[%clk 0:00:18.6]} 55. d6 {[%clk 0:00:17.6]}
55... Ba4 {[%clk 0:00:14.7]} 56. Nd3 {[%clk 0:00:11.5]} 56... Bc6 {[%clk
0:00:10.5]} 57. Nc5 {[%clk 0:00:13.4]} 57... Kf6 {[%clk 0:00:11.5]} 58. e4
{[%clk 0:00:13.7]} 58... Bb5 {[%clk 0:00:06.4]} 59. d7 {[%clk 0:00:10.7]} 59...
Ke7 {[%clk 0:00:06.2]} 60. Kg4 {[%clk 0:00:11.3]} 60... Bc4 {[%clk 0:00:04.5]}
61. Kxg5 {[%clk 0:00:10.9]} 61... Bb5 {[%clk 0:00:06.4]} 62. d5 {[%clk
0:00:11.1]} 62... Bd3 {[%clk 0:00:05.5]} 63. Kf5 {[%clk 0:00:11.9]} 63... Bb5
{[%clk 0:00:04.9]} 64. Ke5 {[%clk 0:00:11.9]} 64... Bc4 {[%clk 0:00:05]} 65. d6+
{[%clk 0:00:12.3]} 65... Kd8 {[%clk 0:00:04.5]} 66. Kf6 {[%clk 0:00:11.8]} 66...
Bd5 {[%clk 0:00:05.1]} 67. e5 {[%clk 0:00:13.1]} 67... Bc4 {[%clk 0:00:04.5]}
68. e6 {[%clk 0:00:11.8]} 68... Bxe6 {[%clk 0:00:05.5]} 69. Nxe6+ {[%clk
0:00:12.5]} 69... Kxd7 {[%clk 0:00:07.4]} 70. Ke5 {[%clk 0:00:13.4]} 70... Kc6
{[%clk 0:00:09.3]} 71. Nf8 {[%clk 0:00:12]} 71... Kb7 {[%clk 0:00:08.9]} 72. Ke6
{[%clk 0:00:12.8]} 72... Kc8 {[%clk 0:00:10.8]} 73. Ke7 {[%clk 0:00:12.4]} 73...
Kb7 {[%clk 0:00:10.5]} 74. d7 {[%clk 0:00:13.3]} 74... Ka7 {[%clk 0:00:12.4]}
75. d8=Q {[%clk 0:00:13.8]} 75... Kb7 {[%clk 0:00:14.3]} 76. Nd7 {[%clk
0:00:10.3]} 76... Kc6 {[%clk 0:00:16.2]} 77. Qb6+ {[%clk 0:00:06.6]} 77... Kd5
{[%clk 0:00:18.1]} 78. Qc5+ {[%clk 0:00:10.2]} 78... Ke4 {[%clk 0:00:19.1]} 79.
Nf6+ {[%clk 0:00:08.4]} 79... Kf4 {[%clk 0:00:19.5]} 80. Ke6 {[%clk 0:00:08.4]}
80... Kf3 {[%clk 0:00:19.1]} 81. Qd4 {[%clk 0:00:07.5]} 81... Ke2 {[%clk
0:00:18.2]} 82. Kf5 {[%clk 0:00:05.8]} 82... Kf3 {[%clk 0:00:20.1]} 83. Qd3+
{[%clk 0:00:06.1]} 83... Kf2 {[%clk 0:00:18.7]} 84. Kg4 {[%clk 0:00:11.9]} 84...
Ke1 {[%clk 0:00:20.6]} 85. Qc2 {[%clk 0:00:11.9]} 85... Kf1 {[%clk 0:00:19.9]}
86. Ne4 {[%clk 0:00:12.6]} 86... Ke1 {[%clk 0:00:21.8]} 87. Qd2+ {[%clk
0:00:12.8]} 87... Kf1 {[%clk 0:00:23.7]} 88. Qf2# {[%clk 0:00:12]} 1-0

[Event "*** MasterClass Titled Tuesday Blitz"]
[Site "Chess.com"]
[Date "2017.07.04"]
[Round "6"]
[White "A-Fier"]
[Black "Tesla37"]
[Result "1-0"]
[WhiteElo "2567"]
[BlackElo "2622"]
[TimeControl "180+2"]
[EndTime "14:17:39 PDT"]
[Termination "A-Fier won by resignation"]

1. e4 {[%clk 0:03:01.9]} 1... c5 {[%clk 0:03:00]} 2. Nf3 {[%clk 0:03:01.5]} 2...
e6 {[%clk 0:03:01.5]} 3. d4 {[%clk 0:03:02.3]} 3... cxd4 {[%clk 0:03:02.7]} 4.
Nxd4 {[%clk 0:03:04.2]} 4... Nc6 {[%clk 0:03:04.2]} 5. Nc3 {[%clk 0:03:05.2]}
5... Qc7 {[%clk 0:03:05.4]} 6. Be3 {[%clk 0:03:06.7]} 6... a6 {[%clk 0:03:06.5]}
7. Qf3 {[%clk 0:03:07.6]} 7... Bd6 {[%clk 0:03:03.8]} 8. O-O-O {[%clk
0:03:07.8]} 8... Be5 {[%clk 0:03:02.1]} 9. g3 {[%clk 0:03:08.5]} 9... Nge7
{[%clk 0:03:00.1]} 10. Qe2 {[%clk 0:03:08.8]} 10... Bxd4 {[%clk 0:03:00.9]} 11.
Bxd4 {[%clk 0:03:08.9]} 11... Nxd4 {[%clk 0:03:02]} 12. Rxd4 {[%clk 0:03:09.2]}
12... e5 {[%clk 0:03:03.3]} 13. Rd1 {[%clk 0:03:02.5]} 13... O-O {[%clk
0:02:58]} 14. f4 {[%clk 0:03:03]} 14... d6 {[%clk 0:02:53.6]} 15. Qd2 {[%clk
0:02:58.1]} 15... exf4 {[%clk 0:02:46.2]} 16. gxf4 {[%clk 0:02:57.5]} 16... Rd8
{[%clk 0:02:43]} 17. Rg1 {[%clk 0:02:56.7]} 17... b5 {[%clk 0:02:23.7]} 18. f5
{[%clk 0:02:57.4]} 18... f6 {[%clk 0:01:52.7]} 19. Nd5 {[%clk 0:02:56.7]} 19...
Qa7 {[%clk 0:01:36.2]} 20. Nxe7+ {[%clk 0:02:57]} 20... Qxe7 {[%clk 0:01:33.8]}
21. Qd5+ {[%clk 0:02:58.3]} 21... Kf8 {[%clk 0:01:28.1]} 22. Qxa8 {[%clk
0:02:59]} 22... Bxf5 {[%clk 0:01:13.4]} 23. Qd5 {[%clk 0:02:56.4]} 23... Bxe4
{[%clk 0:01:14.1]} 24. Qd4 {[%clk 0:02:57.4]} 1-0

[Event "*** MasterClass Titled Tuesday Blitz"]
[Site "Chess.com"]
[Date "2017.07.04"]
[Round "6"]
[White "Schemato"]
[Black "kleinebeer98"]
[Result "0-1"]
[WhiteElo "2300"]
[BlackElo "2436"]
[TimeControl "180+2"]
[EndTime "14:19:15 PDT"]
[Termination "kleinebeer98 won by resignation"]

1. c4 {[%clk 0:03:01.9]} 1... c5 {[%clk 0:02:59.3]} 2. g3 {[%clk 0:03:01.3]}
2... g6 {[%clk 0:02:58]} 3. Bg2 {[%clk 0:03:02.3]} 3... Bg7 {[%clk 0:02:59.2]}
4. Nc3 {[%clk 0:03:03]} 4... e6 {[%clk 0:02:59.2]} 5. Nf3 {[%clk 0:03:03.1]}
5... Ne7 {[%clk 0:03:00.4]} 6. d3 {[%clk 0:03:02.9]} 6... Nbc6 {[%clk 0:03:01]}
7. Bg5 {[%clk 0:03:02.8]} 7... h6 {[%clk 0:02:59]} 8. Bd2 {[%clk 0:03:03]} 8...
a6 {[%clk 0:02:55.3]} 9. Qc1 {[%clk 0:03:01.8]} 9... d6 {[%clk 0:02:53.3]} 10.
a3 {[%clk 0:03:01.4]} 10... Nf5 {[%clk 0:02:52.9]} 11. Rb1 {[%clk 0:03:00.6]}
11... O-O {[%clk 0:02:48.3]} 12. b4 {[%clk 0:02:53]} 12... Rb8 {[%clk
0:02:26.1]} 13. e4 {[%clk 0:02:16.7]} 13... Nfd4 {[%clk 0:02:17]} 14. Nxd4
{[%clk 0:02:11.1]} 14... cxd4 {[%clk 0:02:13.2]} 15. Ne2 {[%clk 0:02:10]} 15...
b5 {[%clk 0:02:12.4]} 16. cxb5 {[%clk 0:02:06.5]} 16... Ne5 {[%clk 0:02:13.3]}
17. Qc2 {[%clk 0:02:00]} 17... Qb6 {[%clk 0:02:10.6]} 18. f4 {[%clk 0:01:54.5]}
18... Ng4 {[%clk 0:02:05.3]} 19. bxa6 {[%clk 0:01:46.5]} 19... Bxa6 {[%clk
0:02:03.9]} 20. O-O {[%clk 0:01:41.7]} 20... Rfc8 {[%clk 0:02:01.8]} 21. Qb3
{[%clk 0:01:42.4]} 21... Rc3 {[%clk 0:02:02.4]} 22. Bxc3 {[%clk 0:01:36.8]}
22... dxc3+ {[%clk 0:02:04.3]} 23. Kh1 {[%clk 0:01:34.5]} 23... Bxd3 {[%clk
0:02:05.6]} 24. Nxc3 {[%clk 0:01:27.8]} 24... Bxb1 {[%clk 0:02:03.1]} 25. Nxb1
{[%clk 0:01:27]} 25... Nf2+ {[%clk 0:02:04.4]} 26. Rxf2 {[%clk 0:01:25.7]} 26...
Qxf2 {[%clk 0:02:06.3]} 27. h4 {[%clk 0:01:20.8]} 27... Rc8 {[%clk 0:02:05.1]}
0-1

[Event "*** MasterClass Titled Tuesday Blitz"]
[Site "Chess.com"]
[Date "2017.07.04"]
[Round "6"]
[White "Blitzstream"]
[Black "Elshan1985"]
[Result "0-1"]
[WhiteElo "2447"]
[BlackElo "2639"]
[TimeControl "180+2"]
[EndTime "14:19:21 PDT"]
[Termination "Elshan1985 won by resignation"]

1. d4 {[%clk 0:03:01.9]} 1... Nf6 {[%clk 0:03:00.5]} 2. Bg5 {[%clk 0:03:02]}
2... e6 {[%clk 0:03:00.5]} 3. Nd2 {[%clk 0:03:03.1]} 3... c5 {[%clk 0:02:59.7]}
4. c3 {[%clk 0:03:03]} 4... d5 {[%clk 0:02:59.9]} 5. Ngf3 {[%clk 0:03:03.7]}
5... Nbd7 {[%clk 0:02:58.5]} 6. e3 {[%clk 0:03:04.9]} 6... Be7 {[%clk
0:02:55.7]} 7. Nb3 {[%clk 0:03:05.9]} 7... b6 {[%clk 0:02:53.7]} 8. Bb5 {[%clk
0:03:01.7]} 8... O-O {[%clk 0:02:51.7]} 9. h4 {[%clk 0:02:56.7]} 9... Bb7 {[%clk
0:02:50.6]} 10. h5 {[%clk 0:02:56.7]} 10... h6 {[%clk 0:02:51.3]} 11. Bf4 {[%clk
0:02:57.3]} 11... Ne4 {[%clk 0:02:39.7]} 12. g4 {[%clk 0:02:52.4]} 12... a6
{[%clk 0:02:35.3]} 13. Be2 {[%clk 0:02:52.4]} 13... f6 {[%clk 0:02:23]} 14. Nh4
{[%clk 0:02:44.7]} 14... e5 {[%clk 0:02:18.3]} 15. Bh2 {[%clk 0:02:43.9]} 15...
f5 {[%clk 0:02:03.7]} 16. Nxf5 {[%clk 0:02:41.8]} 16... Rxf5 {[%clk 0:02:04.2]}
17. gxf5 {[%clk 0:02:42.4]} 17... Bh4 {[%clk 0:02:05.9]} 18. Bg1 {[%clk
0:02:38.1]} 18... Qg5 {[%clk 0:01:57.7]} 19. Bf3 {[%clk 0:02:37.7]} 19... Qxe3+
{[%clk 0:01:45]} 20. Qe2 {[%clk 0:02:33]} 20... Qf4 {[%clk 0:01:45.7]} 21. Bxe4
{[%clk 0:01:58.5]} 21... dxe4 {[%clk 0:01:45.2]} 22. Bh2 {[%clk 0:01:59.7]}
22... Qxf5 {[%clk 0:01:39.4]} 23. d5 {[%clk 0:01:47.7]} 23... Bxd5 {[%clk
0:01:17.5]} 24. O-O-O {[%clk 0:01:43.5]} 24... Bg5+ {[%clk 0:01:13.4]} 25. Kb1
{[%clk 0:01:44.3]} 25... e3+ {[%clk 0:01:14.4]} 26. Ka1 {[%clk 0:01:45]} 26...
Bxh1 {[%clk 0:01:14.8]} 27. Rxh1 {[%clk 0:01:42.9]} 27... exf2 {[%clk
0:01:15.5]} 28. Rf1 {[%clk 0:01:42.5]} 28... Rf8 {[%clk 0:01:13.5]} 29. Qxa6
{[%clk 0:01:43]} 29... Qh3 {[%clk 0:01:13.9]} 30. Qc4+ {[%clk 0:01:36.2]} 30...
Kh8 {[%clk 0:01:13.3]} 0-1

[Event "*** MasterClass Titled Tuesday Blitz"]
[Site "Chess.com"]
[Date "2017.07.04"]
[Round "6"]
[White "Msb2"]
[Black "wonderfultime"]
[Result "1-0"]
[WhiteElo "2556"]
[BlackElo "2652"]
[TimeControl "180+2"]
[EndTime "14:19:36 PDT"]
[Termination "Msb2 won by resignation"]

1. d4 {[%clk 0:03:01.9]} 1... d5 {[%clk 0:02:59.2]} 2. c4 {[%clk 0:03:02.5]}
2... c6 {[%clk 0:03:00.6]} 3. Nf3 {[%clk 0:03:00.7]} 3... Nf6 {[%clk 0:03:01.6]}
4. Nc3 {[%clk 0:03:02.4]} 4... dxc4 {[%clk 0:03:02.1]} 5. a4 {[%clk 0:03:02.1]}
5... Bf5 {[%clk 0:03:03]} 6. Ne5 {[%clk 0:03:02.8]} 6... Nbd7 {[%clk 0:03:03.1]}
7. Nxc4 {[%clk 0:03:04]} 7... Nb6 {[%clk 0:03:04.6]} 8. Ne5 {[%clk 0:03:05.3]}
8... a5 {[%clk 0:03:06.1]} 9. e3 {[%clk 0:03:06.8]} 9... h6 {[%clk 0:03:00.4]}
10. f3 {[%clk 0:03:07.5]} 10... e6 {[%clk 0:02:59.6]} 11. e4 {[%clk 0:03:08.8]}
11... Bh7 {[%clk 0:03:00.7]} 12. Be3 {[%clk 0:03:10.5]} 12... Be7 {[%clk
0:03:01.8]} 13. Qb3 {[%clk 0:03:09.8]} 13... O-O {[%clk 0:03:01.7]} 14. Be2
{[%clk 0:03:10.9]} 14... Rb8 {[%clk 0:02:14.6]} 15. d5 {[%clk 0:02:53.6]} 15...
Nbxd5 {[%clk 0:01:03.7]} 16. exd5 {[%clk 0:02:53.6]} 16... exd5 {[%clk
0:01:05.6]} 17. Rd1 {[%clk 0:02:43.8]} 17... Bd6 {[%clk 0:01:05.5]} 18. f4
{[%clk 0:02:42.5]} 18... Re8 {[%clk 0:01:02.8]} 19. O-O {[%clk 0:02:42.3]} 19...
Nd7 {[%clk 0:01:02.1]} 20. Nxd5 {[%clk 0:02:07.4]} 20... Bxe5 {[%clk 0:00:29.3]}
21. Nb6 {[%clk 0:02:03.5]} 21... Bf6 {[%clk 0:00:06.7]} 22. Rxd7 {[%clk
0:01:54.5]} 1-0